[Event "Titled Tuesday Blitz November 07 Early 2023"]
[White "Pham, Le Thao Nguyen"]
[Black "Andreikin, Dmitry"]
[WhiteFideId "12401226"]
[BlackFideId "4158814"]
[WhiteElo "2520"]
[BlackElo "3116"]
[Result "0-1"]
[Round "1"]
[TimeControl "180+1"]
[Date "2023.11.07"]
[WhiteClock "0:00:03"]
[BlackClock "0:00:14"]
[Board "2"]

1. d4 {[%clk 0:03:00]}  Nf6 {[%clk 0:02:56]} 2. Nf3 {[%clk 0:03:00]}  e6 {[%clk 0:02:56]} 3. Bg5 {[%clk 0:03:00]}  h6 {[%clk 0:02:54]} 4. Bh4 {[%clk 0:02:59]}  d6 {[%clk 0:02:54]} 5. e3 {[%clk 0:03:00]}  g5 {[%clk 0:02:54]} 6. Bg3 {[%clk 0:02:59]}  Nh5 {[%clk 0:02:55]} 7. Nfd2 {[%clk 0:02:52]}  Nxg3 {[%clk 0:02:51]} 8. hxg3 {[%clk 0:02:53]}  Bg7 {[%clk 0:02:51]} 9. Bd3 {[%clk 0:02:42]}  c5 {[%clk 0:02:50]} 10. c3 {[%clk 0:02:40]}  Nc6 {[%clk 0:02:51]} 11. a4 {[%clk 0:02:28]}  Qc7 {[%clk 0:02:40]} 12. Na3 {[%clk 0:02:26]}  a6 {[%clk 0:02:39]} 13. dxc5 {[%clk 0:02:00]}  dxc5 {[%clk 0:02:39]} 14. Nac4 {[%clk 0:01:59]}  b6 {[%clk 0:02:20]} 15. Ne4 {[%clk 0:01:46]}  O-O {[%clk 0:02:13]} 16. Nxg5 {[%clk 0:01:08]}  Rd8 {[%clk 0:02:13]} 17. Nf3 {[%clk 0:00:51]}  b5 {[%clk 0:02:09]} 18. axb5 {[%clk 0:00:37]}  axb5 {[%clk 0:02:10]} 19. Rxa8 {[%clk 0:00:36]}  bxc4 {[%clk 0:02:10]} 20. Bh7+ {[%clk 0:00:31]}  Kxh7 {[%clk 0:02:11]} 21. Qc2+ {[%clk 0:00:26]}  Rd3 {[%clk 0:01:25]} 22. Ra4 {[%clk 0:00:23]}  Qd6 {[%clk 0:00:56]} 23. Rxc4 {[%clk 0:00:17]}  Ba6 {[%clk 0:00:56]} 24. Rch4 {[%clk 0:00:16]}  Kg8 {[%clk 0:00:51]} 25. Nd2 {[%clk 0:00:12]}  Ne5 {[%clk 0:00:48]} 26. Ne4 {[%clk 0:00:12]}  Qc6 {[%clk 0:00:25]} 27. O-O {[%clk 0:00:12]}  f5 {[%clk 0:00:25]} 28. Nd2 {[%clk 0:00:08]}  Bb7 {[%clk 0:00:22]} 29. f3 {[%clk 0:00:06]}  Rxe3 {[%clk 0:00:22]} 30. Nc4 {[%clk 0:00:05]}  Nxc4 {[%clk 0:00:21]} 31. Rxc4 {[%clk 0:00:06]}  Ba6 {[%clk 0:00:21]} 32. Ra4 {[%clk 0:00:05]}  Bxf1 {[%clk 0:00:21]} 33. Kxf1 {[%clk 0:00:06]}  Qd5 {[%clk 0:00:15]} 34. Ra7 {[%clk 0:00:05]}  c4 {[%clk 0:00:14]} 35. Kf2 {[%clk 0:00:05]}  Qc5 {[%clk 0:00:14]} 36. Ra8+ {[%clk 0:00:05]}  Kh7 {[%clk 0:00:14]} 37. Kf1 {[%clk 0:00:05]}  Rd3 {[%clk 0:00:15]} 38. Qe2 {[%clk 0:00:06]}  Qd5 {[%clk 0:00:15]} 39. g4 {[%clk 0:00:03]}  Qxa8 {[%clk 0:00:14]} 0-1


[Site "https://www.chess.com"]

[Event "Titled Tuesday Blitz November 07 Early 2023"]
[White "Nihal Sarin"]
[Black "Toktomushev, Teimur"]
[WhiteFideId "25092340"]
[BlackFideId "14176726"]
[WhiteElo "3109"]
[BlackElo "2518"]
[Result "1-0"]
[Round "1"]
[TimeControl "180+1"]
[Date "2023.11.07"]
[WhiteClock "0:01:32"]
[BlackClock "0:00:00"]
[Board "3"]

1. a3 {[%clk 0:03:00]}  d5 {[%clk 0:02:55]} 2. Nf3 {[%clk 0:02:59]}  Nf6 {[%clk 0:02:53]} 3. e3 {[%clk 0:02:54]}  c5 {[%clk 0:02:43]} 4. b4 {[%clk 0:02:53]}  e6 {[%clk 0:02:03]} 5. bxc5 {[%clk 0:02:51]}  Bxc5 {[%clk 0:02:04]} 6. Bb2 {[%clk 0:02:51]}  O-O {[%clk 0:02:04]} 7. d4 {[%clk 0:02:51]}  Bd6 {[%clk 0:01:59]} 8. Nbd2 {[%clk 0:02:51]}  b6 {[%clk 0:01:53]} 9. Bd3 {[%clk 0:02:52]}  Ba6 {[%clk 0:01:51]} 10. c4 {[%clk 0:02:50]}  Nc6 {[%clk 0:01:25]} 11. O-O {[%clk 0:02:48]}  Na5 {[%clk 0:01:24]} 12. Qe2 {[%clk 0:02:48]}  dxc4 {[%clk 0:01:13]} 13. Nxc4 {[%clk 0:02:49]}  Nxc4 {[%clk 0:01:13]} 14. Bxc4 {[%clk 0:02:49]}  Bxc4 {[%clk 0:01:14]} 15. Qxc4 {[%clk 0:02:49]}  Qc8 {[%clk 0:01:07]} 16. Qd3 {[%clk 0:02:44]}  Qb7 {[%clk 0:01:06]} 17. Nd2 {[%clk 0:02:40]}  Rfc8 {[%clk 0:00:58]} 18. g3 {[%clk 0:02:39]}  b5 {[%clk 0:00:51]} 19. e4 {[%clk 0:02:38]}  Bf8 {[%clk 0:00:47]} 20. Rad1 {[%clk 0:02:25]}  b4 {[%clk 0:00:28]} 21. axb4 {[%clk 0:02:15]}  Bxb4 {[%clk 0:00:29]} 22. d5 {[%clk 0:02:15]}  Bxd2 {[%clk 0:00:19]} 23. Rxd2 {[%clk 0:02:03]}  exd5 {[%clk 0:00:19]} 24. exd5 {[%clk 0:01:59]}  Nd7 {[%clk 0:00:12]} 25. Qf5 {[%clk 0:01:49]}  Nf8 {[%clk 0:00:05]} 26. Qg4 {[%clk 0:01:42]}  f6 {[%clk 0:00:03]} 27. Bxf6 {[%clk 0:01:41]}  Qd7 {[%clk 0:00:04]} 28. Qxd7 {[%clk 0:01:36]}  Nxd7 {[%clk 0:00:05]} 29. Ba1 {[%clk 0:01:34]}  Nb6 {[%clk 0:00:04]} 30. d6 {[%clk 0:01:32]}  Rd8 {[%clk 0:00:04]} 31. Rd4 {[%clk 0:01:30]}  Rd7 {[%clk 0:00:04]} 32. Bb2 {[%clk 0:01:30]}  Rad8 {[%clk 0:00:05]} 33. Ba3 {[%clk 0:01:31]}  a5 {[%clk 0:00:03]} 34. Rb1 {[%clk 0:01:30]}  Nc8 {[%clk 0:00:02]} 35. Rb5 {[%clk 0:01:31]}  Nxd6 {[%clk 0:00:00]} 36. Rbd5 {[%clk 0:01:32]} 1-0


[Site "https://www.chess.com"]

[Event "Titled Tuesday Blitz November 07 Early 2023"]
[White "Paravyan, David"]
[Black "Arencibia Monduy, Antonio"]
[WhiteFideId "4194985"]
[BlackFideId "3507939"]
[WhiteElo "3076"]
[BlackElo "2517"]
[Result "1-0"]
[Round "1"]
[TimeControl "180+1"]
[Date "2023.11.07"]
[WhiteClock "0:01:48"]
[BlackClock "0:00:00"]
[Board "5"]

1. e4 {[%clk 0:03:00]}  e6 {[%clk 0:02:59]} 2. d4 {[%clk 0:03:00]}  d5 {[%clk 0:02:59]} 3. Nc3 {[%clk 0:03:01]}  dxe4 {[%clk 0:03:00]} 4. Nxe4 {[%clk 0:03:00]}  Nd7 {[%clk 0:03:00]} 5. Nf3 {[%clk 0:03:00]}  Ngf6 {[%clk 0:03:01]} 6. Nxf6+ {[%clk 0:03:00]}  Nxf6 {[%clk 0:03:02]} 7. a4 {[%clk 0:03:01]}  Be7 {[%clk 0:03:01]} 8. g3 {[%clk 0:03:00]}  O-O {[%clk 0:03:01]} 9. Bg2 {[%clk 0:03:00]}  c5 {[%clk 0:03:00]} 10. O-O {[%clk 0:03:00]}  cxd4 {[%clk 0:02:51]} 11. Nxd4 {[%clk 0:02:57]}  Qa5 {[%clk 0:02:08]} 12. c3 {[%clk 0:02:55]}  Rd8 {[%clk 0:02:04]} 13. Qe2 {[%clk 0:02:55]}  a6 {[%clk 0:01:57]} 14. Bf4 {[%clk 0:02:52]}  Nd5 {[%clk 0:01:39]} 15. Bd2 {[%clk 0:02:52]}  Qc7 {[%clk 0:01:38]} 16. Rfe1 {[%clk 0:02:50]}  Bf6 {[%clk 0:01:38]} 17. Nf3 {[%clk 0:02:46]}  Bd7 {[%clk 0:01:34]} 18. Bg5 {[%clk 0:02:46]}  Bxg5 {[%clk 0:01:32]} 19. Nxg5 {[%clk 0:02:47]}  Bc6 {[%clk 0:01:30]} 20. a5 {[%clk 0:02:44]}  Nf6 {[%clk 0:01:25]} 21. Bxc6 {[%clk 0:02:39]}  Qxc6 {[%clk 0:01:26]} 22. Nf3 {[%clk 0:02:38]}  Rd5 {[%clk 0:01:23]} 23. Red1 {[%clk 0:02:32]}  Rad8 {[%clk 0:01:23]} 24. Rxd5 {[%clk 0:02:32]}  Qxd5 {[%clk 0:01:23]} 25. Nd4 {[%clk 0:02:33]}  e5 {[%clk 0:01:18]} 26. Nf5 {[%clk 0:02:33]}  Qe6 {[%clk 0:01:15]} 27. Ne3 {[%clk 0:02:33]}  e4 {[%clk 0:00:57]} 28. Rd1 {[%clk 0:02:31]}  Qc8 {[%clk 0:00:50]} 29. Rxd8+ {[%clk 0:02:30]}  Qxd8 {[%clk 0:00:51]} 30. Qc4 {[%clk 0:02:31]}  h6 {[%clk 0:00:48]} 31. b4 {[%clk 0:02:28]}  Qd7 {[%clk 0:00:44]} 32. Kg2 {[%clk 0:02:27]}  g6 {[%clk 0:00:40]} 33. h3 {[%clk 0:02:26]}  h5 {[%clk 0:00:40]} 34. Qc5 {[%clk 0:02:26]}  Kg7 {[%clk 0:00:32]} 35. Qe5 {[%clk 0:02:25]}  Qe8 {[%clk 0:00:27]} 36. Qd4 {[%clk 0:02:24]}  Qe6 {[%clk 0:00:26]} 37. g4 {[%clk 0:02:22]}  Kh7 {[%clk 0:00:23]} 38. g5 {[%clk 0:02:19]}  Nd7 {[%clk 0:00:23]} 39. Qc4 {[%clk 0:02:10]}  Qe7 {[%clk 0:00:20]} 40. h4 {[%clk 0:02:11]}  Nf8 {[%clk 0:00:15]} 41. Nd5 {[%clk 0:02:09]}  Qe5 {[%clk 0:00:13]} 42. Nf6+ {[%clk 0:02:09]}  Kg7 {[%clk 0:00:13]} 43. Qxe4 {[%clk 0:02:09]}  Qxc3 {[%clk 0:00:13]} 44. Qxb7 {[%clk 0:01:58]}  Ne6 {[%clk 0:00:13]} 45. Qb8 {[%clk 0:01:59]}  Qc6+ {[%clk 0:00:11]} 46. Kg3 {[%clk 0:01:57]}  Nf8 {[%clk 0:00:11]} 47. Qe5 {[%clk 0:01:56]}  Ne6 {[%clk 0:00:04]} 48. Nxh5+ {[%clk 0:01:56]}  Kh7 {[%clk 0:00:04]} 49. Nf6+ {[%clk 0:01:56]}  Kg7 {[%clk 0:00:04]} 50. Nd5+ {[%clk 0:01:52]}  Kh7 {[%clk 0:00:04]} 51. h5 {[%clk 0:01:48]}  Qc1 {[%clk 0:00:04]} 52. Nf6+ {[%clk 0:01:47]}  Kg7 {[%clk 0:00:04]} 53. h6+ {[%clk 0:01:48]}  Kh8 {[%clk 0:00:00]} 54. Qb8+ {[%clk 0:01:48]} 1-0


[Site "https://www.chess.com"]

[Event "Titled Tuesday Blitz November 07 Early 2023"]
[White "Pujari, Rucha"]
[Black "Bluebaum, Matthias"]
[WhiteFideId "5024528"]
[BlackFideId "24651516"]
[WhiteElo "2514"]
[BlackElo "3066"]
[Result "0-1"]
[Round "1"]
[TimeControl "180+1"]
[Date "2023.11.07"]
[WhiteClock "0:00:00"]
[BlackClock "0:02:05"]
[Board "8"]

1. d4 {[%clk 0:03:00]}  d5 {[%clk 0:03:00]} 2. c4 {[%clk 0:03:00]}  e6 {[%clk 0:03:00]} 3. Nf3 {[%clk 0:03:00]}  Nf6 {[%clk 0:03:01]} 4. Nc3 {[%clk 0:03:01]}  Bb4 {[%clk 0:03:01]} 5. Qa4+ {[%clk 0:03:00]}  Nc6 {[%clk 0:03:01]} 6. a3 {[%clk 0:03:01]}  Bxc3+ {[%clk 0:03:01]} 7. bxc3 {[%clk 0:03:02]}  Bd7 {[%clk 0:03:02]} 8. cxd5 {[%clk 0:02:51]}  exd5 {[%clk 0:03:03]} 9. Qc2 {[%clk 0:02:49]}  Na5 {[%clk 0:03:01]} 10. Bg5 {[%clk 0:02:46]}  h6 {[%clk 0:03:02]} 11. Bh4 {[%clk 0:02:45]}  Rc8 {[%clk 0:03:01]} 12. e3 {[%clk 0:02:41]}  c5 {[%clk 0:03:01]} 13. dxc5 {[%clk 0:02:32]}  Rxc5 {[%clk 0:03:02]} 14. Bd3 {[%clk 0:02:30]}  O-O {[%clk 0:03:00]} 15. O-O {[%clk 0:02:29]}  Bg4 {[%clk 0:02:57]} 16. Nd4 {[%clk 0:02:24]}  Qd6 {[%clk 0:02:55]} 17. Bg3 {[%clk 0:02:08]}  Qe7 {[%clk 0:02:55]} 18. h3 {[%clk 0:02:01]}  Bd7 {[%clk 0:02:54]} 19. Rfe1 {[%clk 0:01:46]}  Rfc8 {[%clk 0:02:50]} 20. Rac1 {[%clk 0:01:41]}  Ne4 {[%clk 0:02:50]} 21. Bxe4 {[%clk 0:01:35]}  dxe4 {[%clk 0:02:51]} 22. Qb2 {[%clk 0:01:17]}  b6 {[%clk 0:02:49]} 23. Red1 {[%clk 0:01:13]}  Ba4 {[%clk 0:02:47]} 24. Re1 {[%clk 0:00:55]}  Nc4 {[%clk 0:02:45]} 25. Qb4 {[%clk 0:00:53]}  Qe8 {[%clk 0:02:41]} 26. Bf4 {[%clk 0:00:34]}  a5 {[%clk 0:02:41]} 27. Qb1 {[%clk 0:00:33]}  Qd8 {[%clk 0:02:20]} 28. g4 {[%clk 0:00:28]}  Nxa3 {[%clk 0:02:19]} 29. Qa1 {[%clk 0:00:23]}  Nb5 {[%clk 0:02:11]} 30. Qxa4 {[%clk 0:00:22]}  Nxc3 {[%clk 0:02:12]} 31. Rxc3 {[%clk 0:00:18]}  Rxc3 {[%clk 0:02:13]} 32. Nf5 {[%clk 0:00:18]}  Qf6 {[%clk 0:02:11]} 33. Qd7 {[%clk 0:00:14]}  Kh7 {[%clk 0:02:08]} 34. Qd5 {[%clk 0:00:12]}  Qe6 {[%clk 0:02:05]} 35. Qd1 {[%clk 0:00:08]}  Rc1 {[%clk 0:02:03]} 36. Qxc1 {[%clk 0:00:07]}  Rxc1 {[%clk 0:02:04]} 37. Rxc1 {[%clk 0:00:07]}  a4 {[%clk 0:02:05]} 38. Nd4 {[%clk 0:00:07]}  Qd5 {[%clk 0:02:05]} 39. Ra1 {[%clk 0:00:06]}  b5 {[%clk 0:02:05]} 40. Kg2 {[%clk 0:00:04]}  Qc4 {[%clk 0:02:05]} 41. Bd6 {[%clk 0:00:03]}  Qc3 {[%clk 0:02:05]} 42. Nxb5 {[%clk 0:00:00]}  Qxa1 {[%clk 0:02:05]} 0-1


[Site "https://www.chess.com"]

[Event "Titled Tuesday Blitz November 07 Early 2023"]
[White "Pranav, V"]
[Black "Taboas Rodriguez, Daniel"]
[WhiteFideId "25060783"]
[BlackFideId "2208466"]
[WhiteElo "3055"]
[BlackElo "2514"]
[Result "1-0"]
[Round "1"]
[TimeControl "180+1"]
[Date "2023.11.07"]
[WhiteClock "0:00:37"]
[BlackClock "0:00:00"]
[Board "9"]

1. e4 {[%clk 0:03:00]}  e5 {[%clk 0:02:59]} 2. Nf3 {[%clk 0:03:01]}  Nc6 {[%clk 0:02:59]} 3. Bb5 {[%clk 0:03:01]}  Nf6 {[%clk 0:02:59]} 4. d3 {[%clk 0:03:01]}  d6 {[%clk 0:02:59]} 5. O-O {[%clk 0:03:00]}  Bd7 {[%clk 0:02:59]} 6. c4 {[%clk 0:03:00]}  g6 {[%clk 0:02:58]} 7. Nc3 {[%clk 0:03:00]}  Bg7 {[%clk 0:02:58]} 8. h3 {[%clk 0:03:00]}  O-O {[%clk 0:02:58]} 9. Be3 {[%clk 0:03:00]}  Nh5 {[%clk 0:02:48]} 10. Nd5 {[%clk 0:02:43]}  Ne7 {[%clk 0:02:33]} 11. Bxd7 {[%clk 0:02:39]}  Qxd7 {[%clk 0:02:32]} 12. Rc1 {[%clk 0:02:38]}  c6 {[%clk 0:02:29]} 13. Nxe7+ {[%clk 0:02:37]}  Qxe7 {[%clk 0:02:30]} 14. Re1 {[%clk 0:02:37]}  a6 {[%clk 0:02:28]} 15. d4 {[%clk 0:02:34]}  exd4 {[%clk 0:02:11]} 16. Bxd4 {[%clk 0:02:35]}  Nf4 {[%clk 0:02:09]} 17. Bxg7 {[%clk 0:02:32]}  Kxg7 {[%clk 0:02:10]} 18. Qd4+ {[%clk 0:02:32]}  Qf6 {[%clk 0:02:08]} 19. Qxf6+ {[%clk 0:02:17]}  Kxf6 {[%clk 0:02:08]} 20. Rcd1 {[%clk 0:02:17]}  Rad8 {[%clk 0:02:03]} 21. g3 {[%clk 0:01:59]}  Ne6 {[%clk 0:01:34]} 22. Kg2 {[%clk 0:01:56]}  h5 {[%clk 0:01:32]} 23. Rd2 {[%clk 0:01:55]}  Ke7 {[%clk 0:01:31]} 24. Red1 {[%clk 0:01:52]}  Rd7 {[%clk 0:01:29]} 25. b4 {[%clk 0:01:46]}  Rfd8 {[%clk 0:01:28]} 26. a3 {[%clk 0:01:44]}  b5 {[%clk 0:01:26]} 27. Rc1 {[%clk 0:01:38]}  c5 {[%clk 0:01:19]} 28. Rd5 {[%clk 0:01:27]}  Nc7 {[%clk 0:00:57]} 29. Rdd1 {[%clk 0:01:25]}  cxb4 {[%clk 0:00:40]} 30. axb4 {[%clk 0:01:24]}  bxc4 {[%clk 0:00:41]} 31. Rxc4 {[%clk 0:01:25]}  d5 {[%clk 0:00:41]} 32. exd5 {[%clk 0:01:23]}  Nxd5 {[%clk 0:00:42]} 33. Ra1 {[%clk 0:01:21]}  Rb7 {[%clk 0:00:35]} 34. Ne5 {[%clk 0:01:13]}  Rd6 {[%clk 0:00:28]} 35. Nc6+ {[%clk 0:01:03]}  Kf6 {[%clk 0:00:20]} 36. Rxa6 {[%clk 0:00:52]}  Rb6 {[%clk 0:00:16]} 37. Rxb6 {[%clk 0:00:51]}  Nxb6 {[%clk 0:00:17]} 38. Rf4+ {[%clk 0:00:51]}  Kg7 {[%clk 0:00:16]} 39. Ne5 {[%clk 0:00:51]}  f6 {[%clk 0:00:15]} 40. Nf3 {[%clk 0:00:42]}  Rd3 {[%clk 0:00:12]} 41. Rd4 {[%clk 0:00:41]}  Rb3 {[%clk 0:00:09]} 42. Nd2 {[%clk 0:00:40]}  Rb2 {[%clk 0:00:09]} 43. Ne4 {[%clk 0:00:40]}  f5 {[%clk 0:00:08]} 44. Ng5 {[%clk 0:00:40]}  Rb3 {[%clk 0:00:04]} 45. h4 {[%clk 0:00:39]}  Rb2 {[%clk 0:00:04]} 46. Ne6+ {[%clk 0:00:39]}  Kf6 {[%clk 0:00:04]} 47. Nf4 {[%clk 0:00:40]}  Kf7 {[%clk 0:00:00]} 48. Nxg6 {[%clk 0:00:37]} 1-0


[Site "https://www.chess.com"]

[Event "Titled Tuesday Blitz November 07 Early 2023"]
[White "Senthil Maran K"]
[Black "Le, Quang Liem"]
[WhiteFideId "25035681"]
[BlackFideId "12401137"]
[WhiteElo "2513"]
[BlackElo "3048"]
[Result "0-1"]
[Round "1"]
[TimeControl "180+1"]
[Date "2023.11.07"]
[WhiteClock "0:00:03"]
[BlackClock "0:00:16"]
[Board "10"]

1. d4 {[%clk 0:03:00]}  Nf6 {[%clk 0:02:59]} 2. g3 {[%clk 0:03:00]}  c5 {[%clk 0:02:58]} 3. d5 {[%clk 0:03:00]}  b5 {[%clk 0:02:58]} 4. Bg2 {[%clk 0:02:59]}  Bb7 {[%clk 0:02:58]} 5. e4 {[%clk 0:03:00]}  e6 {[%clk 0:02:58]} 6. Ne2 {[%clk 0:02:58]}  exd5 {[%clk 0:02:55]} 7. exd5 {[%clk 0:02:59]}  d6 {[%clk 0:02:46]} 8. O-O {[%clk 0:02:59]}  Be7 {[%clk 0:02:47]} 9. a4 {[%clk 0:02:58]}  b4 {[%clk 0:02:46]} 10. c4 {[%clk 0:02:59]}  bxc3 {[%clk 0:02:45]} 11. Nbxc3 {[%clk 0:02:59]}  O-O {[%clk 0:02:45]} 12. Bf4 {[%clk 0:02:59]}  Na6 {[%clk 0:02:44]} 13. Nb5 {[%clk 0:02:59]}  Nb4 {[%clk 0:02:42]} 14. Nec3 {[%clk 0:02:57]}  Re8 {[%clk 0:02:20]} 15. Re1 {[%clk 0:02:51]}  Bf8 {[%clk 0:02:20]} 16. Qd2 {[%clk 0:02:52]}  h6 {[%clk 0:02:18]} 17. h4 {[%clk 0:02:49]}  a6 {[%clk 0:02:04]} 18. Na3 {[%clk 0:02:49]}  Bc8 {[%clk 0:02:04]} 19. Nc4 {[%clk 0:02:47]}  Bf5 {[%clk 0:02:03]} 20. Rxe8 {[%clk 0:02:43]}  Nxe8 {[%clk 0:02:04]} 21. Be4 {[%clk 0:02:39]}  Bxe4 {[%clk 0:01:37]} 22. Nxe4 {[%clk 0:02:40]}  Nf6 {[%clk 0:01:38]} 23. Nxf6+ {[%clk 0:02:32]}  Qxf6 {[%clk 0:01:39]} 24. Re1 {[%clk 0:02:28]}  Rd8 {[%clk 0:01:34]} 25. a5 {[%clk 0:02:13]}  Qf5 {[%clk 0:01:31]} 26. Ne3 {[%clk 0:02:01]}  Qe4 {[%clk 0:01:19]} 27. Rd1 {[%clk 0:01:32]}  Be7 {[%clk 0:01:07]} 28. h5 {[%clk 0:01:18]}  Bf6 {[%clk 0:00:58]} 29. b3 {[%clk 0:00:42]}  Bd4 {[%clk 0:00:58]} 30. Nc4 {[%clk 0:00:42]}  Qxd5 {[%clk 0:00:54]} 31. Qe2 {[%clk 0:00:31]}  Nc6 {[%clk 0:00:38]} 32. Re1 {[%clk 0:00:14]}  Ne5 {[%clk 0:00:32]} 33. Qe4 {[%clk 0:00:09]}  Nf3+ {[%clk 0:00:27]} 34. Kf1 {[%clk 0:00:06]}  Qxe4 {[%clk 0:00:27]} 35. Rxe4 {[%clk 0:00:07]}  d5 {[%clk 0:00:28]} 36. Re7 {[%clk 0:00:05]}  dxc4 {[%clk 0:00:28]} 37. bxc4 {[%clk 0:00:05]}  Bf6 {[%clk 0:00:22]} 38. Ra7 {[%clk 0:00:05]}  Nd2+ {[%clk 0:00:23]} 39. Bxd2 {[%clk 0:00:04]}  Rxd2 {[%clk 0:00:23]} 40. Rxa6 {[%clk 0:00:05]}  Bd4 {[%clk 0:00:20]} 41. Rd6 {[%clk 0:00:04]}  Rxf2+ {[%clk 0:00:20]} 42. Ke1 {[%clk 0:00:05]}  Ra2 {[%clk 0:00:21]} 43. a6 {[%clk 0:00:05]}  Kh7 {[%clk 0:00:20]} 44. g4 {[%clk 0:00:06]}  Be5 {[%clk 0:00:18]} 45. Rc6 {[%clk 0:00:06]}  f6 {[%clk 0:00:18]} 46. Kd1 {[%clk 0:00:06]}  Kg8 {[%clk 0:00:18]} 47. Rb6 {[%clk 0:00:05]}  Kf7 {[%clk 0:00:17]} 48. Kc1 {[%clk 0:00:05]}  Ke8 {[%clk 0:00:15]} 49. Kb1 {[%clk 0:00:06]}  Ra1+ {[%clk 0:00:15]} 50. Kc2 {[%clk 0:00:06]}  Kd7 {[%clk 0:00:16]} 51. Kd3 {[%clk 0:00:06]}  Bc7 {[%clk 0:00:16]} 52. Rb5 {[%clk 0:00:04]}  Kc6 {[%clk 0:00:15]} 53. Rb2 {[%clk 0:00:01]}  Rxa6 {[%clk 0:00:16]} 54. Re2 {[%clk 0:00:02]}  Be5 {[%clk 0:00:16]} 55. Ke4 {[%clk 0:00:03]}  Ra4 {[%clk 0:00:17]} 56. Kf5 {[%clk 0:00:03]}  Rxc4 {[%clk 0:00:17]} 57. Ra2 {[%clk 0:00:04]}  Rf4+ {[%clk 0:00:16]} 58. Ke6 {[%clk 0:00:04]}  Rxg4 {[%clk 0:00:17]} 59. Ra7 {[%clk 0:00:04]}  Rg5 {[%clk 0:00:16]} 60. Ra5 {[%clk 0:00:03]}  Rxh5 {[%clk 0:00:15]} 61. Ra6+ {[%clk 0:00:03]}  Kb5 {[%clk 0:00:15]} 62. Ra7 {[%clk 0:00:03]}  Rg5 {[%clk 0:00:15]} 63. Rb7+ {[%clk 0:00:04]}  Kc4 {[%clk 0:00:16]} 64. Kd7 {[%clk 0:00:03]}  h5 {[%clk 0:00:16]} 65. Kc6 {[%clk 0:00:04]}  h4 {[%clk 0:00:17]} 66. Rb2 {[%clk 0:00:03]}  Bxb2 {[%clk 0:00:16]} 0-1


[Site "https://www.chess.com"]

[Event "Titled Tuesday Blitz November 07 Early 2023"]
[White "Martinez Alcantara, Jose Eduardo"]
[Black "Ahmad, Khagan"]
[WhiteFideId "3805662"]
[BlackFideId "13431552"]
[WhiteElo "3041"]
[BlackElo "2513"]
[Result "1-0"]
[Round "1"]
[TimeControl "180+1"]
[Date "2023.11.07"]
[WhiteClock "0:00:47"]
[BlackClock "0:00:00"]
[Board "11"]

1. e4 {[%clk 0:03:00]}  c5 {[%clk 0:02:53]} 2. Nf3 {[%clk 0:03:01]}  d6 {[%clk 0:02:53]} 3. c3 {[%clk 0:03:01]}  Nf6 {[%clk 0:02:53]} 4. h3 {[%clk 0:03:02]}  g6 {[%clk 0:02:51]} 5. Bd3 {[%clk 0:03:02]}  Bg7 {[%clk 0:02:51]} 6. Bc2 {[%clk 0:03:03]}  Nc6 {[%clk 0:02:51]} 7. d4 {[%clk 0:03:03]}  cxd4 {[%clk 0:02:51]} 8. cxd4 {[%clk 0:03:04]}  d5 {[%clk 0:02:52]} 9. e5 {[%clk 0:03:04]}  Ne4 {[%clk 0:02:53]} 10. Nc3 {[%clk 0:03:05]}  Nxc3 {[%clk 0:02:53]} 11. bxc3 {[%clk 0:03:06]}  O-O {[%clk 0:02:53]} 12. O-O {[%clk 0:03:07]}  Bf5 {[%clk 0:02:45]} 13. Bxf5 {[%clk 0:03:04]}  gxf5 {[%clk 0:02:46]} 14. Bg5 {[%clk 0:02:57]}  f6 {[%clk 0:02:29]} 15. exf6 {[%clk 0:02:57]}  Bxf6 {[%clk 0:02:29]} 16. Re1 {[%clk 0:02:57]}  Qd6 {[%clk 0:02:22]} 17. Qd2 {[%clk 0:02:57]}  Rae8 {[%clk 0:02:17]} 18. Bh6 {[%clk 0:02:53]}  Rf7 {[%clk 0:01:54]} 19. Bf4 {[%clk 0:02:54]}  Qd7 {[%clk 0:01:52]} 20. Re2 {[%clk 0:02:54]}  e6 {[%clk 0:01:43]} 21. Rae1 {[%clk 0:02:54]}  Rfe7 {[%clk 0:01:39]} 22. Bg5 {[%clk 0:02:47]}  Bxg5 {[%clk 0:01:39]} 23. Qxg5+ {[%clk 0:02:47]}  Rg7 {[%clk 0:01:39]} 24. Qh5 {[%clk 0:02:48]}  Rg6 {[%clk 0:01:37]} 25. Nh4 {[%clk 0:02:44]}  Rf6 {[%clk 0:01:32]} 26. f4 {[%clk 0:02:40]}  Kh8 {[%clk 0:01:11]} 27. Nf3 {[%clk 0:02:28]}  Rg8 {[%clk 0:00:51]} 28. Ng5 {[%clk 0:02:27]}  Rgg6 {[%clk 0:00:51]} 29. Qh4 {[%clk 0:02:24]}  Nd8 {[%clk 0:00:38]} 30. Nf3 {[%clk 0:02:11]}  Nf7 {[%clk 0:00:37]} 31. Kh2 {[%clk 0:02:11]}  Rh6 {[%clk 0:00:35]} 32. Qf2 {[%clk 0:02:09]}  Rhg6 {[%clk 0:00:36]} 33. Re3 {[%clk 0:02:07]}  Qc7 {[%clk 0:00:34]} 34. g3 {[%clk 0:01:57]}  Nd6 {[%clk 0:00:34]} 35. Ne5 {[%clk 0:01:57]}  Rg7 {[%clk 0:00:31]} 36. Rc1 {[%clk 0:01:52]}  Ne4 {[%clk 0:00:32]} 37. Qe2 {[%clk 0:01:52]}  Qd8 {[%clk 0:00:21]} 38. c4 {[%clk 0:01:51]}  Qg8 {[%clk 0:00:20]} 39. Qe1 {[%clk 0:01:40]}  Rh6 {[%clk 0:00:11]} 40. cxd5 {[%clk 0:01:40]}  exd5 {[%clk 0:00:12]} 41. Rc2 {[%clk 0:01:28]}  Qe8 {[%clk 0:00:11]} 42. Qc1 {[%clk 0:01:09]}  Qh5 {[%clk 0:00:04]} 43. Rc8+ {[%clk 0:01:09]}  Rg8 {[%clk 0:00:05]} 44. Rxg8+ {[%clk 0:01:09]}  Kxg8 {[%clk 0:00:06]} 45. Qc8+ {[%clk 0:01:08]}  Kg7 {[%clk 0:00:06]} 46. Qxb7+ {[%clk 0:01:05]}  Kf8 {[%clk 0:00:06]} 47. Qa8+ {[%clk 0:01:05]}  Kg7 {[%clk 0:00:06]} 48. Qxa7+ {[%clk 0:01:05]}  Kf8 {[%clk 0:00:06]} 49. Qb8+ {[%clk 0:01:03]}  Kg7 {[%clk 0:00:07]} 50. Qb7+ {[%clk 0:01:03]}  Kf8 {[%clk 0:00:06]} 51. Qc8+ {[%clk 0:01:02]}  Kg7 {[%clk 0:00:06]} 52. Qd7+ {[%clk 0:01:01]}  Kf8 {[%clk 0:00:05]} 53. Qd8+ {[%clk 0:00:59]}  Kg7 {[%clk 0:00:05]} 54. Qe7+ {[%clk 0:00:59]}  Kg8 {[%clk 0:00:06]} 55. g4 {[%clk 0:00:51]}  fxg4 {[%clk 0:00:04]} 56. Qd8+ {[%clk 0:00:52]}  Kg7 {[%clk 0:00:04]} 57. Qd7+ {[%clk 0:00:53]}  Kf8 {[%clk 0:00:03]} 58. Nxg4 {[%clk 0:00:51]}  Rg6 {[%clk 0:00:00]} 59. Rb3 {[%clk 0:00:47]} 1-0


[Site "https://www.chess.com"]

[Event "Titled Tuesday Blitz November 07 Early 2023"]
[White "Krzywda, Andrzej"]
[Black "Pranesh M"]
[WhiteFideId "1114565"]
[BlackFideId "35028600"]
[WhiteElo "2512"]
[BlackElo "3026"]
[Result "0-1"]
[Round "1"]
[TimeControl "180+1"]
[Date "2023.11.07"]
[WhiteClock "0:01:22"]
[BlackClock "0:02:28"]
[Board "12"]

1. e4 {[%clk 0:03:00]}  e5 {[%clk 0:02:59]} 2. Nf3 {[%clk 0:03:00]}  Nc6 {[%clk 0:03:00]} 3. Bb5 {[%clk 0:03:00]}  a6 {[%clk 0:03:00]} 4. Ba4 {[%clk 0:03:01]}  Bc5 {[%clk 0:03:01]} 5. O-O {[%clk 0:02:54]}  Nge7 {[%clk 0:03:01]} 6. c3 {[%clk 0:02:51]}  O-O {[%clk 0:03:01]} 7. d4 {[%clk 0:02:51]}  Ba7 {[%clk 0:03:02]} 8. d5 {[%clk 0:02:46]}  Na5 {[%clk 0:02:57]} 9. d6 {[%clk 0:02:44]}  Ng6 {[%clk 0:02:54]} 10. Bg5 {[%clk 0:02:41]}  f6 {[%clk 0:02:54]} 11. Qd5+ {[%clk 0:02:40]}  Kh8 {[%clk 0:02:53]} 12. Bxf6 {[%clk 0:02:32]}  Qxf6 {[%clk 0:02:51]} 13. Qxa5 {[%clk 0:02:31]}  Qxd6 {[%clk 0:02:48]} 14. Rd1 {[%clk 0:02:26]}  Qf6 {[%clk 0:02:42]} 15. Nbd2 {[%clk 0:02:09]}  b5 {[%clk 0:02:35]} 16. Bb3 {[%clk 0:02:04]}  Nf4 {[%clk 0:02:35]} 17. Qxc7 {[%clk 0:01:48]}  Nd3 {[%clk 0:02:29]} 18. Rf1 {[%clk 0:01:22]}  Bb6 {[%clk 0:02:28]} 0-1


[Site "https://www.chess.com"]